Cogmind - Beta 13 @@@ ROGUE MODE // 2024.03.31 @ 22:22:51 Player: MasterLemons Result: Destroyed by G-34 Mercenary with Small Laser Performance ------------- Evolutions (0) 0 Regions Visited (1) 200 Robots Destroyed (5) 25 Value Destroyed (98) 98 Prototype IDs (2) 40 Alien Tech Used (0) 0 Bonus (0) 0 TOTAL SCORE: 363 Bonus ------- None Cogmind --------- Core Integrity 0/250 Matter 300/300 Energy 250/250 System Corruption 0% Temperature Cool (15) Movement Treading (480) Ox4 Location -10/Materials Parts ------- > --- POWER (1) -------- Ion Engine > --- PROPULSION (2) --- Light Treads > --- UTILITY (2) ------ Huge Storage Unit > --- WEAPON (2) ------- Medium Laser > --- INVENTORY (25) --- Ion Engine Light Ion Engine Light Ion Engine Peak State ------------ > --- POWER ------------ Ion Engine > --- PROPULSION ------- Light Treads Light Treads > --- UTILITY ---------- Small Storage Unit Huge Storage Unit > --- WEAPON ----------- Medium Laser Small Laser > --- INVENTORY -------- Ion Engine Light Ion Engine Light Ion Engine [Rating: 7] Favorites ----------- Power Ion Engine Engine Ion Engine Propulsion Light Treads Treads Light Treads Utility Small Storage Unit Storage Small Storage Unit Weapon Medium Laser Energy Gun Medium Laser Build | -11 -10 ------- Run | Yrd Mat Slots Evolved . | . . Power . | . . Propulsion . | . . Utility . | . . Weapon . | . . Parts Attached 8 | 6 2 Power 1 | 1 . Engine 1 | 1 . Core . | . . Reactor . | . . Propulsion 2 | 2 . Treads 2 | 2 . Leg . | . . Wheel . | . . Hover . | . . Flight . | . . Utility 3 | 1 2 Device . | . . Storage 3 | 1 2 Processor . | . . Hackware . | . . Protection . | . . Artifact . | . . Weapon 2 | 2 . Energy Gun 2 | 2 . Energy Cannon . | . . Ballistic Gun . | . . Ballistic Cannon . | . . Launcher . | . . Special Weapon . | . . Impact Weapon . | . . Slashing Weapon . | . . Piercing Weapon . | . . Special Melee Weapon . | . . Unidentified Prototypes . | . . Parts Lost 2 | . 2 Power . | . . Propulsion 1 | . 1 Utility . | . . Weapon 1 | . 1 Highest Loss Streak 2 | . 2 To Critical Strikes . | . . Average Slot Usage (%) 78 | . 78 Engine 14 | . 14 Treads 24 | . 24 Storage 14 | . 14 Energy Gun 24 | . 24 Naked Turns . | . . Heaviest Build 88 | 13 88 Greatest Support 40 | 40 40 Greatest Overweight (x) 4 | 1 4 Average Overweight (x) . | . . Largest Inventory Capacity 25 | 8 25 Average Capacity 14 | 6 16 Most Carried 5 | 5 4 Average Carried 2 | 1 2 Final Capacity 25 | 8 25 Final Carried 3 | 1 3 Class Distribution -------------------- 100% | Mutant Dominant Class ---------------- Mutant | -10/Materials Resources | -11 -10 ----------- Run | Yrd Mat Matter Collected 278 | 260 18 Remotely . | . . Salvage Created 115 | . 115 Parts 11 | . 11 Haulers Intercepted . | . . Recyclers Shooed 1 | . 1 Parts Field Recycled . | . . Retrieved Matter . | . . Parts Self-Destructed . | . . Prevented . | . . Kills | -11 -10 ------- Run | Yrd Mat Combat Hostiles Destroyed 5 | . 5 Guns 5 | . 5 Classes Destroyed 2 | . 2 Swarmer 3 | . 3 Grunt 2 | . 2 Best Kill Streak 3 | . 3 Combat Bots Only 3 | . 3 Max Kills in Single Turn 1 | . 1 Gunslinging . | . . Exploded . | . . Melee . | . . Uniques/NPCs Destroyed . | . . Combat | -11 -10 -------- Run | Yrd Mat Hostile Shots Fired 74 | . 74 Missed 17 | . 17 Damage Taken 715 | . 715 Core 254 | . 254 Absorbed by Shields . | . . Core Remaining (%) 100 | 100 . Volleys Fired 17 | . 17 Largest 2 | . 2 Hottest 90 | . 90 Shots Fired 30 | . 30 Gun 30 | . 30 Cannon . | . . Launcher . | . . Special . | . . Kinetic . | . . Thermal 30 | . 30 Explosive . | . . Electromagnetic . | . . Robot Hit Streak 7 | . 7 Robot Miss Streak 3 | . 3 Penetration Max . | . . Secondary Targets . | . . Shots Hit Robots 17 | . 17 Core Hits 9 | . 9 Critical Kills . | . . Critical Parts Destroyed . | . . Critical Strikes 1 | . 1 Burn 1 | . 1 Melee Attacks . | . . Impact . | . . Slashing . | . . Piercing . | . . Sneak Attacks . | . . Combat Hostiles . | . . Follow-up Attacks . | . . Damage Inflicted 213 | . 213 Guns 205 | . 205 Cannons . | . . Explosions . | . . Melee . | . . Ramming 8 | . 8 Kinetic . | . . Thermal 205 | . 205 Explosive . | . . Electromagnetic . | . . Impact . | . . Slashing . | . . Piercing . | . . Highest Corruption . | . . Average Corruption . | . . Corruption Purged . | . . Corruption Blocked . | . . Overload Shots . | . . Overflow Damage . | . . Projectiles . | . . Explosions . | . . Melee . | . . Knockbacks . | . . Impact . | . . Kinetic . | . . Secondary . | . . Self-Inflicted Damage . | . . Shots . | . . Rammed 2 | . 2 Targets Rammed 2 | . 2 Kicked . | . . Crushed . | . . Highest Temperature 190 | . 190 Average Temperature 68 | . 68 Received Heat Transfer 393 | . 393 Siege Activations . | . . Robots Corrupted . | . . Combat Hostiles . | . . Parts Fried . | . . Impact Corruptions . | . . Robots Melted . | . . Combat Hostiles . | . . Parts Melted 1 | . 1 Heat Transferred 607 | . 607 Parts Sabotaged . | . . Parts Stolen . | . . Parts Stripped . | . . Power Chain Reactions . | . . Alert | -11 -10 ------- Run | Yrd Mat Peak Influence 115 | . 115 Initial . | . . Average 59 | . 72 Maximum Alert Level . | . . Low Security (%) 100 | 100 100 Level 1 . | . . Level 2 . | . . Level 3 . | . . Level 4 . | . . Level 5 . | . . High Security . | . . Max Security . | . . Squads Dispatched 1 | . 1 Investigation . | . . Extermination . | . . Reinforcement 1 | . 1 Assault . | . . Garrison . | . . Intercept . | . . Searches Triggered . | . . Construction Impeded . | . . Haulers Reinforced . | . . Active Scanning Responses . | . . Cargo Convoy Interrupts . | . . Stealth | -11 -10 --------- Run | Yrd Mat Distress Signals . | . . Communications Jammed . | . . Distress Signals . | . . Times Spotted 9 | . 9 Peak Tracking Total 4 | . 4 Tactical Retreats . | . . Traps | -11 -10 ------- Run | Yrd Mat Traps Triggered . | . . Indirectly . | . . Trap Hack Attempts . | . . Triggered . | . . Disarmed . | . . Reprogrammed . | . . Reused . | . . Traps Extracted . | . . Installed . | . . Triggered . | . . Machines | -11 -10 ---------- Run | Yrd Mat Machines Disabled . | . . Max in Single Turn . | . . Machines Repaired . | . . Machines Dismantled . | . . Machines Sabotaged . | . . Overloaded Fab Kills . | . . Hacking | -11 -10 --------- Run | Yrd Mat Machines Accessed 2 | . 2 Terminals 2 | . 2 Fabricators . | . . Repair Stations . | . . Recycling Units . | . . Scanalyzers . | . . Garrison Access . | . . Total Hacks 7 | . 7 Successful 5 | . 5 Failed 2 | . 2 Catastrophic . | . . Database Lockouts . | . . Manual . | . . Terminals 7 | . 7 Fabricators . | . . Repair Stations . | . . Recycling Units . | . . Scanalyzers . | . . Garrison Access . | . . Terminal Hacks 5 | . 5 Prototype ID Bank 1 | . 1 Scanalyzer Index 1 | . 1 Alert Level 1 | . 1 Registered Components 1 | . 1 Zone Layout 1 | . 1 Fabricator Hacks . | . . Repair Station Hacks . | . . Recycling Unit Hacks . | . . Scanalyzer . | . . Garrison Access Hacks . | . . Unauthorized Hacks . | . . Terminals . | . . Fabricators . | . . Repair Stations . | . . Recycling Units . | . . Scanalyzers . | . . Garrison Access . | . . Data Cores Recovered . | . . Used . | . . Hacking Detections 1 | . 1 Full Trace Events . | . . Feedback Events . | . . Feedback Blocked . | . . Robot Schematics Acquired . | . . Robots Built . | . . Authchips . | . . Time . | . . Total Robot Build Rating . | . . Part Schematics Acquired . | . . Parts Built . | . . Authchips . | . . Time . | . . Total Part Build Rating . | . . Parts Repaired . | . . Time . | . . Parts Recycled . | . . Recycled Matter . | . . Retrieved Matter . | . . Retrieved Components . | . . Parts Scanalyzed . | . . Part Schematics Acquired . | . . Parts Damaged . | . . Bothacking | -11 -10 ------------ Run | Yrd Mat Used RIF Installer . | . . Robots Hacked . | . . Non-combat . | . . Combat . | . . Robot Hacks Applied . | . . Relay Couplers Released . | . . Fabnet Peak Effective % . | . . Robots Rewired . | . . Allies Hacked . | . . Hacks Repelled . | . . Allies | -11 -10 -------- Run | Yrd Mat Total Allies . | . . Largest Group . | . . Highest-Rated Group . | . . Highest-Rated Ally . | . . Total Orders . | . . Ally Attacks . | . . Total Damage . | . . Kills . | . . Allies Corrupted . | . . Allies Melted . | . . Intel | -11 -10 ------- Run | Yrd Mat Robot Analysis Total . | . . Derelict Logs Recovered . | . . Drone Launches . | . . Drone Recoveries . | . . Exploration | -11 -10 ------------- Run | Yrd Mat Turns Passed 259 | 48 211 Spaces Moved 98 | 32 66 Core 14 | 14 . Treads 84 | 18 66 Legs . | . . Wheels . | . . Hover . | . . Flight . | . . Fastest Speed 50 | 50 160 Average Speed 189 | 116 225 Slowest Speed 480 | 160 480 Overloaded Moves . | . . Propulsion Burnouts . | . . Robots Hopped . | . . Cave-ins Triggered . | . . Exploration Rate (%) 13 | 4 22 Regions Visited 1 Branch Regions . Pre-discovered Areas . | . . Known Exits Taken . | . . Unknown Exits Taken 1 | 1 . Scrap Searched . | . . Spaces Dug . | . . Terrain Destroyed . | . . Melee . | . . Projectile . | . . AOE . | . . Terrain Rammed . | . . Walls Destroyed . | . . Machines Disabled . | . . Actions | -11 -10 --------- Run | Yrd Mat Total 135 | 42 93 Wait 2 | . 2 Move 97 | 31 66 Hop . | . . Pick Up 8 | 5 3 Fast Attach 2 | 2 . Attach 5 | 4 1 Detach . | . . Swap 1 | . 1 Drop 1 | . 1 Fire 17 | . 17 Melee . | . . Ram . | . . Kick . | . . Crush 2 | . 2 Escape Stasis . | . . Rewire . | . . Trap . | . . Miscellaneous . | . . Route ------- -11/Scrapyard -10/Materials History --------- Turn | Location | Event 6 | -11/Scrapyard | Discovered new exit (range 15) 49 | -11/Scrapyard | Entered Materials 183 | -10/Materials | Core integrity fell below 50% 252 | -10/Materials | Core integrity fell below 20% 260 | -10/Materials | Destroyed by G-34 Mercenary with Small Laser Last Messages --------------- 00132_ Sml. Laser melted. 00132_ G-34 Mercenary destroyed. 00149_ R-06 Scavenger collects Aluminum Leg. 00151_ Acquired Huge Storage Unit. 00154_ Dropped Sml. Storage Unit. 00159_ R-06 Scavenger collects Sml. Storage Unit. 00180_ Slammed into U-05 Engineer. 00182_ Critical hit (Burn: +37). 00186_ Acquired 18 matter. 00204_ G-34 Mercenary destroyed. 00209_ Sml. Laser destroyed. 00209_ Critical hit (Burn: +37). 00210_ G-47 Trooper suffers critical hit (Burn). 00213_ Lgt. Treads destroyed. 00219_ O-16 Technician: "IFF HANDSHAKE FAILED. SECURING TERMINAL." 00223_ Slammed into R-06 Scavenger. 00226_ R-06 Scavenger collects Heat Sink. 00231_ R-06 Scavenger collects Aluminum Leg. 00234_ ALERT: Hostiles spotted, dispatching reinforcements to Terminal M005. Map ----- +----------------------------------------------------+ | ???????????#????# ## #????# " ???????? | | ???????????#????# """ ## ###### ???????? | | ???????????#????# """ ## # # ???????? | | ???????????#????# """ ## # # ???????? | | ???????????#????# ## # # ???????? | | ???????????#????######### # # ???????? | | ???????????#????????????# # / ???????? | | ???????????#????????##### # # ???????? | | ?????????# ########## # # ???????? | | ????????? # %= ### ???????? | | ????????? T +%* #?# " ???????? | | ????????? % ######?# """???????? | | ???????????########## r #??????????????????????? | | ????????????????????## #######?????????????????? | | ???????????########### ???????????? | | ???????????# # ######??????????????????? | | ???????????# = + #???????????????????????? | | ???????????# # #???????????????????????? | | ???????????# """ # ##########??????????????? | | ???????????# """ """ # g #??????????????? | | ???????????# "R """ # #??????????????? | | ??!????????# """ %+% ! #??????????????? | | ???????????# # ! #??????????????? | | ???????????##+######## #??????????????? | | ?????????????????????# #??????????????? | | ?????????????????????# @ #??????????????? | | ?????????????? t #??????????????? | | ?????????? r #??????????????? | | ??????????? ]] #??????????????? | | ???????????#+########## ]] = #??????????????? | | ??????????????????????# ] #??????????????? | | ??????????????????????# #??????????????? | | ??????????????????????# #??????????????? | | ??????????????????????# #??????????????? | | ??????????????????????# g #??????????????? | | ??????????????????????# g #??????????????? | | ??????????????????????# "" ??????????????? | | ??????????????????????# T" ??????????????? | | ??????????????????????# "? ????????????????? | | ??????????????????????# ???????????????????? | | ??????????????????????? ?????????????????????? | | ?????????????????????????????????????????????????? | | ?????????????????????????????????????????????????? | | ?????????????????????????????????????????????????? | | ?????????????????????????????????????????????????? | | ?????????????????????????????????????????????????? | | ?????????????????????????????????????????????????? | | ?????????????????????????????????????????????????? | | ?????????????????????????????????????????????????? | | ?????????????????????????????????????????????????? | +----------------------------------------------------+ Best States ------------- Heat Dissipation 25 Energy Generation 10 Energy Capacity 250 Matter Stores 300 Matter Capacity 300 Sight Range 16 Terrain Scan Density 10 Evasion (%) 50 Recoil Reduction 2 Item Schematics ----------------- None Robot Schematics ------------------ None Fabricated ------------ Nothing Alien Tech Used ----------------- None Achievements -------------- None Challenges ------------ None Game ------ Seed FieldPortableNanoactuators Manual? 0 Play Time 00:04:46 Cumulative 4.0 hours Start 2024.03.31 @ 22:20:07 End 2024.03.31 @ 22:22:51 Sessions 1 Manual Loads 0 Difficulty Rogue Special Mode None Game No. 14 Rogue 11 Adventurer 3 Explorer 0 Win Type - Total 0 Types 0/0/0/0/0/0/0/0/0 Lore% 11 Gallery% 6 Achievement% 10 Wizard Run 0 Options --------- Layout 1 ASCII 0 Keyboard 0 Movement Mouse Keybinds 0 Fullscreen 1 Font 32/SmallcapsGlow Map View 77x35 Zoom Use 0% Tactical HUD 1 Map Filters NONE Filters NONE Steam 1 RUN: 03377e66-b64b-400c-8de5-cf8bec0b67eb